[Event "GEO-ch U20 Boys 2020"]
[Site "Tbilisi"]
[Date "2020.08.09"]
[Round "4.3"]
[White "Naqopia, Giorgi"]
[Black "Akhvlediani, Irakli"]
[Result "0-1"]
[ECO "A45"]
[WhiteElo "1806"]
[BlackElo "2358"]
[Annotator "ChessBase"]
[PlyCount "68"]
[EventDate "2020.08.06"]
[EventType "tourn"]
[EventCountry "GEO"]
[SourceTitle "playchess.com"]
[Source "ChessBase"]
[SourceQuality "1"]
[TimeControl "40/5400+30:1800+30"]

1. d4 {[%emt 0:00:00]} Nf6 {[%emt 0:02:21]} 2. Bg5 {[%emt 0:00:00]} e6 {[%emt 0:00:08]} 3. e4 {[%emt 0:00:00]} h6 {[%emt 0:00:03]} 4. Bxf6 {[%emt 0:00:00]} Qxf6 {[%emt 0:00:05]} 5. Nf3 {[%emt 0:00:00]} c5 {[%emt 0:01:34]} 6. e5 {[%emt 0:00:00]} Qd8 {[%emt 0:00:28]} 7. d5 {[%emt 0:00:00]} exd5 {[%emt 0:02:59]} 8. Qxd5 {[%emt 0:00:06]} Be7 {[%emt 0:00:03]} 9. Nc3 {[%emt 0:02:58]} Nc6 {[%emt 0:04:23]} 10. O-O-O {[%emt 0:01:20]} O-O {[%emt 0:06:27]} 11. a3 {[%emt 0:03:08]} b5 {[%emt 0:04:32]} 12. Bxb5 {[%emt 0:02:40]} Qb6 {[%emt 0:00:05]} 13. h4 {[%emt 0:12:36]} Rb8 {[%emt 0:03:57]} 14. Qe4 {[%emt 0:10:59]} Ba6 {[%emt 0:24:14]} 15. Bxa6 {[%emt 0:00:41]} Qxa6 {[%emt 0:05:37]} 16. Ng5 {[%emt 0:07:41]} g6 {[%emt 0:13:23]} 17. e6 {[%emt 0:29:47]} dxe6 {[%emt 0:03:50]} 18. Nxe6 {[%emt 0:05:46]} Rfc8 {[%emt 0:07:48]} 19. Rd7 {[%emt 0:08:38]} Qb6 {[%emt 0:10:11]} 20. Na4 {[%emt 0:01:09]} Qb5 {[%emt 0:00:05]} 21. h5 {[%emt 0:05:26]} g5 {[%emt 0:03:27]} 22. f4 {[%emt 0:01:56]} c4 {[%emt 0:02:10]} 23. fxg5 {[%emt 0:03:36]} hxg5 {[%emt 0:00:02]} 24. h6 {[%emt 0:01:23]} Bf6 {[%emt 0:00:53]} 25. c3 {[%emt 0:01:42]} Ne5 {[%emt 0:00:38]} 26. Rd5 {[%emt 0:00:22]} Nd3+ {[%emt 0:00:15]} 27. Kd2 {[%emt 0:00:50]} Qxa4 {[%emt 0:00:54]} 28. h7+ {[%emt 0:00:18]} Kh8 {[%emt 0:00:00]} 29. Qf5 {[%emt 0:00:06]} Rxb2+ {[%emt 0:00:08]} 30. Ke3 {[%emt 0:00:04]} Bxc3 {[%emt 0:01:11]} 31. Re5 {[%emt 0:01:31]} Bxe5 {[%emt 0:00:53]} 32. Nxg5 {[%emt 0:00:41]} Bf4+ {[%emt 0:00:15]} 33. Kf3 {[%emt 0:00:05]} Qc6+ {[%emt 0:00:11]} 34. Kg4 {[%emt 0:00:53]} Rxg2+ {[%emt 0:00:22]} 0-1

[Event "GEO-ch U20 Boys 2020"]
[Site "Tbilisi"]
[Date "2020.08.09"]
[Round "4.5"]
[White "Tskipurishvili, Daviti"]
[Black "Safarov, Deniel"]
[Result "0-1"]
[ECO "B08"]
[WhiteElo "1902"]
[BlackElo "1766"]
[Annotator "ChessBase"]
[PlyCount "86"]
[EventDate "2020.08.06"]
[EventType "tourn"]
[EventCountry "GEO"]
[SourceTitle "playchess.com"]
[Source "ChessBase"]
[SourceQuality "1"]
[TimeControl "40/5400+30:1800+30"]

1. d4 {[%emt 0:08:35]} Nf6 {[%emt 0:00:00]} 2. Nf3 {[%emt 0:00:03]} g6 {[%emt 0:00:00]} 3. Nc3 {[%emt 0:00:25]} d6 {[%emt 0:02:12]} 4. e4 {[%emt 0:00:20]} Bg7 {[%emt 0:00:00]} 5. Be2 {[%emt 0:00:06]} Nbd7 {[%emt 0:00:33]} 6. e5 {[%emt 0:02:25]} Ng8 {[%emt 0:12:56]} 7. e6 {[%emt 0:06:01]} fxe6 {[%emt 0:02:37]} 8. Ng5 {[%emt 0:00:51]} Ndf6 {[%emt 0:04:26]} 9. Bc4 {[%emt 0:01:06]} d5 {[%emt 0:06:31]} 10. Bd3 {[%emt 0:03:15]} Nh6 {[%emt 0:01:00]} 11. h4 {[%emt 0:11:54]} O-O {[%emt 0:13:29]} 12. Qe2 {[%emt 0:08:09]} e5 {[%emt 0:05:49]} 13. dxe5 {[%emt 0:01:44]} Nfg4 {[%emt 0:02:43]} 14. f4 {[%emt 0:03:21]} Bxe5 {[%emt 0:05:50]} 15. h5 {[%emt 0:07:04]} Bxf4 {[%emt 0:11:12]} 16. Bxf4 {[%emt 0:02:30]} Rxf4 {[%emt 0:08:11]} 17. Ne6 {[%emt 0:05:52]} Bxe6 {[%emt 0:01:30]} 18. Qxe6+ {[%emt 0:01:00]} Kg7 {[%emt 0:00:51]} 19. hxg6 {[%emt 0:16:24]} Rf6 {[%emt 0:00:50]} 20. Qxd5 {[%emt 0:02:47]} hxg6 {[%emt 0:01:22]} 21. O-O-O {[%emt 0:08:00]} Qxd5 {[%emt 0:04:31]} 22. Nxd5 {[%emt 0:00:04]} Nf2 {[%emt 0:00:18]} 23. Nxf6 {[%emt 0:01:58]} exf6 {[%emt 0:03:31]} 24. Rhe1 {[%emt 0:04:12]} Nxd1 {[%emt 0:01:08]} 25. Kxd1 {[%emt 0:03:52]} Ng8 {[%emt 0:02:13]} 26. Kd2 {[%emt 0:00:29]} Rd8 {[%emt 0:00:24]} 27. Kc3 {[%emt 0:00:05]} Rd7 {[%emt 0:01:17]} 28. Re8 {[%emt 0:00:31]} Ne7 {[%emt 0:00:07]} 29. Ra8 {[%emt 0:00:08]} Nd5+ {[%emt 0:03:33]} 30. Kb3 {[%emt 0:00:28]} Rd6 {[%emt 0:02:33]} 31. Rxa7 {[%emt 0:01:16]} Rb6+ {[%emt 0:00:03]} 32. Ka3 {[%emt 0:00:24]} Nb4 {[%emt 0:00:58]} 33. Be4 {[%emt 0:00:16]} f5 {[%emt 0:00:23]} 34. Rxb7 {[%emt 0:00:52]} fxe4 {[%emt 0:00:18]} 35. Rxb6 {[%emt 0:00:20]} Nxc2+ {[%emt 0:00:03]} 36. Kb3 {[%emt 0:00:01]} Na1+ {[%emt 0:00:09]} 37. Kc3 {[%emt 0:00:14]} cxb6 {[%emt 0:00:03]} 38. a4 {[%emt 0:01:26]} e3 {[%emt 0:02:33]} 39. Kd3 {[%emt 0:00:27]} Nb3 {[%emt 0:00:18]} 40. Kxe3 {[%emt 0:00:06]} Nc5 {[%emt 0:00:11]} 41. a5 {[%emt 0:30:58]} bxa5 {[%emt 0:30:18]} 42. Kd4 {[%emt 0:00:01]} Na4 {[%emt 0:00:36]} 43. b3 {[%emt 0:00:05]} Nb6 {[%emt 0:00:04]} 0-1

[Event "GEO-ch U20 Boys 2020"]
[Site "Tbilisi"]
[Date "2020.08.09"]
[Round "4.6"]
[White "Shapovalovi, Vasiko"]
[Black "Qalichava, Akaki"]
[Result "1/2-1/2"]
[ECO "E15"]
[WhiteElo "1679"]
[BlackElo "1832"]
[Annotator "NA"]
[PlyCount "138"]
[EventDate "2020.08.06"]
[EventType "tourn"]
[EventCountry "GEO"]
[SourceTitle "playchess.com"]
[Source "ChessBase"]
[SourceQuality "1"]
[TimeControl "40/5400+30:1800+30"]

1. d4 {[%emt 0:00:00]} Nf6 {[%emt 0:00:00]} 2. c4 {[%emt 0:00:00]} e6 {[%emt 0:00:00]} 3. Nf3 {[%emt 0:00:02]} b6 {[%emt 0:00:00]} 4. g3 {[%emt 0:00:07]} Ba6 {[%emt 0:00:00]} 5. Qc2 {[%emt 0:03:30]} Bb7 {[%emt 0:00:00]} 6. Bg2 {[%emt 0:00:17]} c5 {[%emt 0:00:04]} 7. O-O {[%emt 0:01:33]} cxd4 {[%emt 0:00:19]} 8. Nxd4 {[%emt 0:02:17]} Bxg2 {[%emt 0:00:04]} 9. Kxg2 {[%emt 0:00:04]} Qc8 {[%emt 0:00:04]} 10. b3 {[%emt 0:04:03] 10.b3 has become a bit dusty these days. E15: Queen's Indian: 4 g3 sidelines, 4 g3 Ba6 and 4 g3 Bb7 early deviations.} Nc6 {[%emt 0:07:17]} 11. Bb2 {[%emt 0:02:30]} Qb7 {[%emt 0:02:48]} 12. Kg1 {[%emt 0:01:17]} Be7 {[%emt 0:01:28]} 13. Rd1 {[%emt 0:06:52]} a6 {[%emt 0:00:06] [#]} 14. Nd2 $146 {[%emt 0:01:58]} ({Predecessor:} 14. Nc3 O-O 15. Nxc6 Qxc6 16. Qd3 Rfd8 17. Rac1 Qb7 18. e4 b5 19. e5 bxc4 20. Qxc4 {½-½ (91) Izsak,G (2400)-Murzin,L (2320) Budapest 1997}) 14... O-O {[%emt 0:01:53]} 15. Ne4 {[%emt 0:08:58]} Nxe4 {[%emt 0:04:21]} 16. Qxe4 {[%emt 0:00:39]} Rac8 {[%emt 0:02:44]} 17. Nxc6 {[%emt 0:06:26]} Rxc6 {[%emt 0:00:05]} 18. Qg4 {[%emt 0:01:16]} f6 {[%emt 0:01:15]} 19. Rd3 {[%emt 0:12:57]} Rfc8 {[%emt 0:05:25]} 20. Rad1 {[%emt 0:02:43]} R8c7 {[%emt 0:06:53]} 21. a3 {[%emt 0:07:09]} b5 {[%emt 0:01:01]} 22. c5 {[%emt 0:02:16]} Bxc5 {[%emt 0:02:02]} 23. Bxf6 $1 {[%emt 0:02:17]} d5 {[%emt 0:00:25]} 24. b4 {[%emt 0:07:29]} Bf8 {[%emt 0:06:21]} ({Better is} 24... Bb6 $11) 25. Rf3 {[%emt 0:03:02]} Rf7 {[%emt 0:03:24]} 26. Be5 {[%emt 0:04:03]} Rxf3 {[%emt 0:02:02]} 27. Qxf3 {[%emt 0:00:06]} Qf7 {[%emt 0:00:29]} 28. Qe3 {[%emt 0:02:09]} Qf5 {[%emt 0:02:35]} 29. Rd4 {[%emt 0:02:51]} Be7 {[%emt 0:07:40]} 30. Rd3 {[%emt 0:03:29]} Bf6 {[%emt 0:02:08]} 31. Bxf6 {[%emt 0:00:54]} Qxf6 {[%emt 0:00:04] [#]} (31... gxf6 $11 32. f3 Qe5) 32. Rxd5 $1 {[%emt 0:01:55]} h6 {[%emt 0:04:57]} (32... Rc3 $16 {keeps fighting.} 33. Rd3 Rxd3 34. Qxd3 (34. exd3 e5 $16) 34... Qa1+ 35. Kg2 Qa2) 33. Rc5 {[%emt 0:01:21]} Rd6 {[%emt 0:00:45]} 34. Rc8+ {[%emt 0:00:38]} Kf7 {[%emt 0:02:14]} 35. Kg2 {[%emt 0:00:24]} ({Don't do} 35. Qc5 $6 e5 $18) 35... Qf5 {[%emt 0:01:16]} 36. Qf3 {[%emt 0:00:55]} Kg6 {[%emt 0:00:49]} 37. Rc7 {[%emt 0:01:00]} Qxf3+ {[%emt 0:04:43]} 38. Kxf3 {[%emt 0:00:12]} Kf6 {[%emt 0:00:09]} 39. Rc3 $18 {[%emt 0:00:43]} g5 {[%emt 0:02:05]} 40. e4 {[%emt 0:00:26]} Rd2 {[%emt 0:01:06]} 41. Ke3 {[%emt 0:30:44]} Ra2 {[%emt 0:30:06]} 42. h3 {[%emt 0:00:10]} h5 {[%emt 0:04:03]} 43. h4 {[%emt 0:02:03]} gxh4 44. gxh4 {[%emt 0:00:04]} Ra1 {[%emt 0:03:21]} 45. Kd4 {[%emt 0:02:46]} Rh1 {[%emt 0:00:33]} 46. Rc6 {[%emt 0:00:24]} Rxh4 {[%emt 0:04:46]} 47. Rxa6 {[%emt 0:00:04]} Rh3 {[%emt 0:00:04]} 48. Kc5 {[%emt 0:01:37]} Rc3+ {[%emt 0:00:05]} 49. Kxb5 {[%emt 0:00:34]} h4 {[%emt 0:00:17]} 50. Ra8 {[%emt 0:00:30]} h3 {[%emt 0:00:40]} 51. Rh8 {[%emt 0:00:20]} Rxa3 {[%emt 0:00:09]} 52. Kb6 {[%emt 0:01:57]} Kg5 {[%emt 0:02:34]} 53. b5 {[%emt 0:00:43]} Kg4 {[%emt 0:00:31]} 54. Kb7 {[%emt 0:01:11]} Ra5 {[%emt 0:00:29]} 55. Kc6 {[%emt 0:00:31]} Ra2 {[%emt 0:02:25]} 56. b6 {[%emt 0:00:10]} Rc2+ {[%emt 0:00:02]} 57. Kd7 {[%emt 0:00:21]} Rb2 {[%emt 0:00:03]} 58. Kc7 {[%emt 0:00:06]} Rc2+ {[%emt 0:00:03]} 59. Kb8 {[%emt 0:00:13]} Rxf2 {[%emt 0:00:04]} 60. b7 {[%emt 0:00:41]} h2 {[%emt 0:00:03]} 61. Kc7 {[%emt 0:00:45]} Rc2+ {[%emt 0:00:11]} 62. Kd6 {[%emt 0:00:47]} Rb2 {[%emt 0:00:04]} 63. Rxh2 {[%emt 0:00:46]} Rxb7 {[%emt 0:00:04]} 64. Kxe6 {[%emt 0:00:10]} Kf4 {[%emt 0:00:29]} 65. Rh4+ {[%emt 0:00:28]} Kg5 {[%emt 0:00:05]} 66. Rh8 {[%emt 0:00:30]} Kf4 {[%emt 0:00:10]} 67. Kd5 {[%emt 0:00:26]} Rb5+ {[%emt 0:00:07]} 68. Kd4 {[%emt 0:00:26]} Rb4+ {[%emt 0:00:04]} 69. Kd3 {[%emt 0:00:07]} Rb3+ {[%emt 0:00:03]} 1/2-1/2

[Event "GEO-ch U20 Boys 2020"]
[Site "Tbilisi"]
[Date "2020.08.10"]
[Round "5.1"]
[White "Kacharava, Nikolozi"]
[Black "Adamia, Jaba"]
[Result "1-0"]
[ECO "B42"]
[WhiteElo "2437"]
[BlackElo "1905"]
[Annotator "ChessBase"]
[PlyCount "59"]
[EventDate "2020.08.06"]
[EventType "tourn"]
[EventCountry "GEO"]
[SourceTitle "playchess.com"]
[Source "ChessBase"]
[SourceQuality "1"]
[TimeControl "40/5400+30:1800+30"]

1. e4 {[%emt 0:00:00]} c5 {[%emt 0:04:46]} 2. Nf3 {[%emt 0:00:00]} e6 {[%emt 0:00:07]} 3. d4 {[%emt 0:00:08]} cxd4 {[%emt 0:00:10]} 4. Nxd4 {[%emt 0:00:30]} a6 {[%emt 0:00:04]} 5. Bd3 {[%emt 0:00:36]} Nf6 {[%emt 0:00:51]} 6. O-O {[%emt 0:00:53]} Qc7 {[%emt 0:00:49]} 7. Qe2 {[%emt 0:00:35]} d6 {[%emt 0:01:04]} 8. f4 {[%emt 0:00:48]} Nbd7 {[%emt 0:02:45]} 9. c4 {[%emt 0:01:38]} Be7 {[%emt 0:05:25]} 10. b3 {[%emt 0:01:39]} O-O {[%emt 0:03:32]} 11. Bb2 {[%emt 0:00:49]} b6 {[%emt 0:03:05]} 12. Nd2 {[%emt 0:02:51]} Bb7 {[%emt 0:03:27]} 13. Rae1 {[%emt 0:02:23]} Rfd8 {[%emt 0:06:56]} 14. Kh1 {[%emt 0:11:47]} Nf8 {[%emt 0:21:57]} 15. e5 {[%emt 0:10:58]} dxe5 {[%emt 0:00:21]} 16. fxe5 {[%emt 0:00:40]} Ne8 {[%emt 0:00:37]} 17. Ne4 {[%emt 0:08:35]} Ng6 {[%emt 0:03:53]} 18. Bb1 {[%emt 0:16:31]} Bh4 {[%emt 0:05:15]} 19. Rc1 {[%emt 0:06:54]} Rac8 {[%emt 0:06:39]} 20. Nf3 {[%emt 0:08:41]} Be7 {[%emt 0:07:13]} 21. Qf2 {[%emt 0:02:03]} Bxe4 {[%emt 0:04:04]} 22. Bxe4 {[%emt 0:00:10]} Rd7 {[%emt 0:01:57]} 23. a3 {[%emt 0:05:59]} Bc5 {[%emt 0:02:15]} 24. Qe1 {[%emt 0:01:39]} Qd8 {[%emt 0:06:13]} 25. b4 {[%emt 0:02:08]} Be7 {[%emt 0:00:47]} 26. Qf2 {[%emt 0:00:55]} Nf8 {[%emt 0:03:06]} 27. Bd4 {[%emt 0:01:25]} Rb8 {[%emt 0:01:53]} 28. Bc6 {[%emt 0:00:26]} Ra7 {[%emt 0:00:04]} 29. Rfd1 {[%emt 0:00:58]} Qc7 {[%emt 0:00:11]} 30. Bxe8 {[%emt 0:00:41]} 1-0

[Event "GEO-ch U20 Boys 2020"]
[Site "Tbilisi"]
[Date "2020.08.10"]
[Round "5.2"]
[White "Petriashvili, Nikoloz"]
[Black "Akhvlediani, Irakli"]
[Result "1/2-1/2"]
[ECO "E73"]
[WhiteElo "2423"]
[BlackElo "2358"]
[Annotator "ChessBase"]
[PlyCount "77"]
[EventDate "2020.08.06"]
[EventType "tourn"]
[EventCountry "GEO"]
[SourceTitle "playchess.com"]
[Source "ChessBase"]
[SourceQuality "1"]
[TimeControl "40/5400+30:1800+30"]

1. d4 {[%emt 0:00:00]} Nf6 {[%emt 0:00:00]} 2. c4 {[%emt 0:00:00]} g6 {[%emt 0:00:00]} 3. Nc3 {[%emt 0:00:00]} Bg7 {[%emt 0:00:00]} 4. e4 {[%emt 0:00:00]} d6 {[%emt 0:00:09]} 5. Be2 {[%emt 0:00:00]} O-O {[%emt 0:00:06]} 6. Be3 {[%emt 0:00:00]} Nbd7 {[%emt 0:00:05]} 7. Nf3 {[%emt 0:00:36]} e5 {[%emt 0:00:05]} 8. O-O {[%emt 0:00:04]} c6 {[%emt 0:00:04]} 9. Qc2 {[%emt 0:00:25]} Ng4 {[%emt 0:07:42]} 10. Bg5 {[%emt 0:00:30]} Bf6 {[%emt 0:00:12]} 11. Bxf6 {[%emt 0:02:41]} Ngxf6 {[%emt 0:00:33]} 12. Rad1 {[%emt 0:04:13]} Qe7 {[%emt 0:00:11]} 13. Qd2 {[%emt 0:10:16]} Re8 {[%emt 0:06:47]} 14. Rfe1 {[%emt 0:01:35]} a6 {[%emt 0:06:01]} 15. Bf1 {[%emt 0:04:49]} Qf8 {[%emt 0:07:29]} 16. a3 {[%emt 0:02:04]} b6 {[%emt 0:10:32]} 17. g3 {[%emt 0:07:51]} Bb7 {[%emt 0:04:21]} 18. b4 {[%emt 0:02:57]} Rad8 {[%emt 0:02:18]} 19. Bh3 {[%emt 0:04:43]} b5 {[%emt 0:07:17]} 20. dxe5 {[%emt 0:02:17]} Nxe5 {[%emt 0:02:28]} 21. Nxe5 {[%emt 0:00:05]} dxe5 {[%emt 0:00:03]} 22. Qe3 {[%emt 0:03:14]} Rxd1 {[%emt 0:01:09]} 23. Rxd1 {[%emt 0:01:07]} Rd8 {[%emt 0:00:42]} 24. Qb6 {[%emt 0:07:11]} Rxd1+ {[%emt 0:00:07]} 25. Nxd1 {[%emt 0:00:01]} Bc8 {[%emt 0:09:46]} 26. Qxc6 {[%emt 0:07:03]} Bxh3 {[%emt 0:00:08]} 27. Qxf6 {[%emt 0:00:02]} bxc4 {[%emt 0:00:47]} 28. Ne3 {[%emt 0:03:40]} c3 {[%emt 0:09:21]} 29. Nd5 {[%emt 0:18:36]} Qh6 {[%emt 0:02:02]} 30. Qd8+ {[%emt 0:06:37]} Kg7 {[%emt 0:00:02]} 31. Qf6+ {[%emt 0:08:54]} Kg8 {[%emt 0:00:02]} 32. Qd8+ {[%emt 0:01:14]} Kg7 {[%emt 0:00:03]} 33. f4 {[%emt 0:00:27]} Qh5 {[%emt 0:01:02]} 34. Nf6 {[%emt 0:01:42]} Qf3 {[%emt 0:00:54]} 35. Ne8+ {[%emt 0:00:13]} Kg8 {[%emt 0:00:14]} 36. Nd6+ {[%emt 0:00:28]} Kg7 {[%emt 0:00:02]} 37. Ne8+ {[%emt 0:00:08]} Kg8 {[%emt 0:00:08]} 38. Nd6+ {[%emt 0:00:04]} Kg7 {[%emt 0:00:04]} 39. Ne8+ {[%emt 0:00:02]} 1/2-1/2

[Event "GEO-ch U20 Boys 2020"]
[Site "Tbilisi"]
[Date "2020.08.10"]
[Round "5.4"]
[White "Sartania, Giorgi"]
[Black "Kilasonia, Lado"]
[Result "1-0"]
[ECO "A45"]
[WhiteElo "1690"]
[BlackElo "1390"]
[Annotator "NA"]
[PlyCount "104"]
[EventDate "2020.08.06"]
[EventType "tourn"]
[EventCountry "GEO"]
[SourceTitle "playchess.com"]
[Source "ChessBase"]
[SourceQuality "1"]
[TimeControl "40/5400+30:1800+30"]

1. d4 {[%emt 0:00:00]} Nf6 {[%emt 0:00:00]} 2. Nc3 {[%emt 0:00:00]} d5 {[%emt 0:00:00]} 3. Bf4 {[%emt 0:00:00]} c6 {[%emt 0:02:52]} 4. e3 {[%emt 0:01:30]} Bf5 {[%emt 0:00:30]} 5. f3 {[%emt 0:01:50]} e6 {[%emt 0:00:40]} 6. g4 {[%emt 0:00:29]} Bg6 {[%emt 0:00:02]} 7. h4 {[%emt 0:00:05]} h5 {[%emt 0:00:48]} 8. g5 {[%emt 0:00:14]} Nfd7 {[%emt 0:00:51]} 9. Bd3 {[%emt 0:02:28]} Bxd3 {[%emt 0:00:02]} 10. Qxd3 {[%emt 0:00:02]} Nb6 {[%emt 0:06:49]} 11. g6 {[%emt 0:05:59]} f6 {[%emt 0:00:44]} 12. Nge2 {[%emt 0:04:07]} Bd6 {[%emt 0:00:35]} 13. b3 {[%emt 0:12:26]} Qc7 {[%emt 0:10:10]} 14. Rg1 {[%emt 0:12:17]} N8d7 {[%emt 0:01:21]} 15. O-O-O {[%emt 0:06:19]} O-O-O {[%emt 0:00:53]} 16. Kb2 {[%emt 0:02:27]} e5 {[%emt 0:01:30]} 17. Bg3 {[%emt 0:01:52]} exd4 {[%emt 0:03:40]} 18. exd4 {[%emt 0:01:31]} Rde8 {[%emt 0:01:25]} 19. Bxd6 {[%emt 0:03:12]} Qxd6 {[%emt 0:00:02]} 20. Ng3 {[%emt 0:00:01]} Nf8 {[%emt 0:03:03]} 21. Nf5 {[%emt 0:00:59]} Qd7 {[%emt 0:01:03]} 22. a4 {[%emt 0:08:28]} Kc7 {[%emt 0:02:16]} 23. a5 {[%emt 0:05:21]} Nc8 {[%emt 0:00:04]} 24. Na4 {[%emt 0:00:34]} Nd6 {[%emt 0:00:49]} 25. Ng3 {[%emt 0:05:11]} Qh3 {[%emt 0:02:11]} 26. Nc5 {[%emt 0:02:36]} Ne6 {[%emt 0:04:53]} 27. Ne2 {[%emt 0:05:28]} Qxh4 {[%emt 0:03:15]} 28. Rh1 {[%emt 0:01:46]} Qg5 {[%emt 0:01:16]} 29. Rdg1 {[%emt 0:02:34]} Nxc5 {[%emt 0:03:06]} 30. dxc5 {[%emt 0:00:24]} Qe5+ {[%emt 0:01:05]} 31. Qd4 {[%emt 0:00:18]} Qxe2 {[%emt 0:01:14]} 32. cxd6+ {[%emt 0:00:01]} Kxd6 {[%emt 0:00:25]} 33. Qb4+ {[%emt 0:00:47]} Kc7 {[%emt 0:05:01]} 34. Re1 {[%emt 0:00:03]} Qxf3 {[%emt 0:04:03]} 35. Re7+ {[%emt 0:00:07]} Rxe7 {[%emt 0:00:11]} 36. Qxe7+ {[%emt 0:00:02]} Kc8 {[%emt 0:02:47]} 37. Re1 {[%emt 0:02:29]} d4 {[%emt 0:02:12]} 38. Qe6+ {[%emt 0:04:46]} Kc7 {[%emt 0:04:10]} 39. Qf7+ Kc8 {[%emt 0:01:52]} 40. Re7 {[%emt 0:01:48]} Qc3+ {[%emt 0:01:22]} 41. Kb1 {[%emt 0:30:08]} Qxa5 {[%emt 0:30:23]} 42. Qxg7 {[%emt 0:04:07]} Rd8 {[%emt 0:00:01]} 43. Qxf6 {[%emt 0:00:36]} d3 {[%emt 0:02:27]} 44. Qe6+ {[%emt 0:00:54]} Kb8 {[%emt 0:00:21]} 45. cxd3 {[%emt 0:00:39]} Rxd3 {[%emt 0:00:49]} 46. Re8+ {[%emt 0:00:34]} Kc7 {[%emt 0:01:41]} 47. Qf7+ {[%emt 0:03:06]} Kb6 {[%emt 0:01:33]} 48. Qf2+ {[%emt 0:00:22]} Ka6 {[%emt 0:01:07]} 49. Qc2 {[%emt 0:01:41]} Rg3 {[%emt 0:01:26]} 50. Qe2+ {[%emt 0:00:47]} Qb5 {[%emt 0:00:13]} 51. Qa2+ {[%emt 0:00:14]} Qa5 {[%emt 0:00:27]} 52. Qe2+ {[%emt 0:00:11]} b5 {[%emt 0:03:14]} 1-0